fUSD/lending_fUSD_20240914
["ID","MTS","AMOUNT","RATE_DAILY","PERIOD"]
[338115314,1726283592519,-171.215864,0.00013,2]
[338115315,1726283592542,-171.215864,0.00013,2]
[338115316,1726283592566,-151.0,0.00013,2]
[338115317,1726283592589,-151.0,0.00013,2]
[338115318,1726283592612,-331.662732,0.00013,2]
[338115319,1726283592636,-331.662732,0.00013,2]
[338115320,1726283592658,-1263.005631,0.00013,2]
[338115321,1726283592681,-1335.90652,0.00013,2]
[338115322,1726283592706,-1263.005631,0.00013,2]
[338115323,1726283592730,-1335.90652,0.00013,2]
[338115324,1726283592754,-533.530822,0.00013,2]
[338115325,1726283592778,-533.530822,0.00013,2]
[338115326,1726283592804,-200.0,0.00013,2]
[338115327,1726283592827,-151.0,0.00013,2]
[338115328,1726283592851,-151.0,0.00013,2]
[338115329,1726283592874,-151.0,0.00013,2]
[338115330,1726283592897,-151.0,0.00013,2]
[338115331,1726283592920,-151.0,0.00013,2]
[338115332,1726283592944,-153.513704,0.00013,2]
[338115333,1726283592968,-151.0,0.00013,2]
[338115334,1726283592990,-154.466607,0.00013,2]
[338115335,1726283593014,-765.9,0.00013,2]
[338115336,1726283593038,-852.33,0.00013,2]
[338115337,1726283593062,-858.6,0.00013,2]
[338115338,1726283593086,-154.466607,0.00013,2]
[338115339,1726283593110,-151.0,0.00013,2]
[338115340,1726283593134,-295.986851,0.00013,2]
[338115341,1726283593158,-282.251642,0.00013,2]
[338115342,1726283593181,-151.0,0.00013,2]
[338115343,1726283593204,-295.986851,0.00013,2]
[338115344,1726283593227,-282.251642,0.00013,2]
[338115345,1726283593251,-156.58747,0.00013,2]
[338115346,1726283593274,-156.58747,0.00013,2]
[338115347,1726283593297,-752.82,0.00013,2]
[338115348,1726283593320,-752.82,0.00013,2]
[338115349,1726283593344,-151.0,0.00013,2]
[338115350,1726283593366,-266.299655,0.00013,2]
[338115351,1726283593388,-266.299655,0.00013,2]
[338115352,1726283593410,-288.353686,0.00013,2]
[338115353,1726283593432,-151.0,0.00013,2]
[338115354,1726283593455,-288.353686,0.00013,2]
[338115355,1726283593478,-294.564728,0.00013,2]
[338115356,1726283593501,-173.354621,0.00013,2]
[338115357,1726283593524,-189.140926,0.00013,2]
[338115358,1726283593547,-173.354621,0.00013,2]
[338115359,1726283593573,-151.0,0.00013,2]
[338115360,1726283593596,-227.2651,0.00013,2]
[338115361,1726283593618,-227.2651,0.00013,2]
[338115362,1726283593641,-151.0,0.00013,2]
[338115363,1726283593664,-151.0,0.00013,2]
[338115364,1726283593687,-151.0,0.00013,2]
[338115365,1726283593714,-164.804985,0.00013,2]
[338115366,1726283593737,-164.804985,0.00013,2]
[338115367,1726283593761,-151.0,0.00013,2]
[338115368,1726283593787,-1279.446557,0.00013,2]
[338115369,1726283593812,-1279.446557,0.00013,2]
[338115370,1726283593835,-151.0,0.00013,2]
[338115371,1726283593860,-155.539601,0.00013,2]
[338115372,1726283593883,-151.0,0.00013,2]
[338115373,1726283593907,-155.539601,0.00013,2]
[338115374,1726283593930,-151.0,0.00013,2]
[338115375,1726283593953,-203.562752,0.00013,2]
[338115376,1726283593977,-427.85,0.00013,2]
[338115377,1726283593999,-300.0,0.00013,2]
[338115378,1726283594022,-150.0,0.00013,2]
[338115379,1726283594046,-203.562752,0.00013,2]
[338115380,1726283594071,-151.0,0.00013,2]
[338115381,1726283594094,-151.0,0.00013,2]
[338115382,1726283594117,-276.671427,0.00013,2]
[338115383,1726283594141,-197.200564,0.00013,2]
[338115384,1726283594166,-197.200564,0.00013,2]
[338115385,1726283594190,-427.85,0.00013,2]
[338115386,1726283594330,-150.0,0.00013,2]
[338115387,1726283594354,-2545.704095,0.00013,2]
[338115388,1726283594380,-1293.928013,0.00013,2]
[338115389,1726283594404,-2545.704095,0.00013,2]
[338115390,1726283594428,-1293.928013,0.00013,2]
[338115391,1726283594453,-151.0,0.00013,2]
[338115392,1726283594478,-151.0,0.00013,2]
[338115393,1726283594500,-263.59346,0.00013,2]
[338115394,1726283594523,-427.85,0.00013,2]
[338115395,1726283594545,-150.0,0.00013,2]
[338115396,1726283594570,-151.41,0.00013,2]
[338115397,1726283594593,-263.59346,0.00013,2]
[338115398,1726283594617,-1549.785968,0.00013,2]
[338115399,1726283594641,-1549.785968,0.00013,2]
[338115400,1726283594665,-668.70457,0.00013,2]
[338115401,1726283594688,-668.70457,0.00013,2]
[338115402,1726283594713,-151.0,0.00013,2]
[338115403,1726283594739,-349.55647,0.00013,2]
[338115404,1726283594763,-349.55647,0.00013,2]
[338115405,1726283594787,-1150.67116,0.00013,2]
[338115406,1726283594812,-151.16,0.00013,2]
[338115407,1726283594835,-427.85,0.00013,2]
[338115408,1726283594859,-1150.67116,0.00013,2]
[338115409,1726283594883,-152.465622,0.00013,2]
[338115410,1726283594906,-268.540131,0.00013,2]
[338115411,1726283594930,-268.540131,0.00013,2]
[338115412,1726283594953,-544.770083,0.00013,2]
[338115413,1726283594976,-2275.319601,0.00013,2]
[338115414,1726283594999,-1228.725795,0.00013,2]
[338115415,1726283595021,-544.770083,0.00013,2]
[338115416,1726283595044,-2275.319601,0.00013,2]
[338115417,1726283595070,-1228.725795,0.00013,2]
[338115418,1726283595092,-456.550804,0.00013,2]
[338115419,1726283595116,-9881.541612,0.00013,2]
[338115420,1726283595139,-456.550804,0.00013,2]
[338115421,1726283595162,-9881.541612,0.00013,2]
[338115422,1726283595184,-192.22390047,0.00013,2]
[338115423,1726283595207,-427.85,0.00013,2]
[338115424,1726283595229,-151.0,0.00013,2]
[338115425,1726283595251,-151.791377,0.00013,2]
[338115426,1726283595272,-151.0,0.00013,2]
[338115427,1726283595295,-179.588995,0.00013,2]
[338115428,1726283595320,-179.588995,0.00013,2]
[338115429,1726283595343,-152.258801,0.00013,2]
[338115430,1726283595368,-237.2878,0.00013,2]
[338115431,1726283595391,-237.2878,0.00013,2]
[338115432,1726283595415,-151.0,0.00013,2]
[338115433,1726283595438,-151.0,0.00013,2]
[338115434,1726283595461,-151.0,0.00013,2]
[338115435,1726283595484,-1700.0,0.00013,2]
[338115436,1726283595509,-151.0,0.00013,2]
[338115437,1726283595533,-1180.061605,0.00013,2]
[338115438,1726283595558,-151.0,0.00013,2]
[338115439,1726283595583,-1180.061605,0.00013,2]
[338115440,1726283595608,-685.028177,0.00013,2]
[338115441,1726283595633,-685.028177,0.00013,2]
[338115442,1726283595657,-1888.76268,0.00013,2]
[338115443,1726283595681,-151.0,0.00013,2]
[338115444,1726283595708,-308.40612,0.00013,2]
[338115445,1726283595732,-308.40612,0.00013,2]
[338115446,1726283595756,-925.496886,0.00013,2]
[338115447,1726283595780,-925.496886,0.00013,2]
[338115448,1726283595803,-151.0,0.00013,2]
[338115449,1726283595827,-151.0,0.00013,2]
[338115450,1726283595851,-803.0,0.00013014,2]
[338115451,1726283595875,-3103.0,0.00013014,2]
[338115452,1726283595899,-1025.83198088,0.00013044,2]
[338115453,1726283595923,-1033.56833573,0.00013044,2]
[338115454,1726283595948,-150.0,0.00013092,2]
[338115455,1726283595974,-151.0,0.00013119,2]
[338115456,1726283595999,-1787.50034615,0.00013122,2]
[338115457,1726283596023,-151.0,0.0001313,2]
[338115458,1726283596075,-151.0,0.0001313,2]
[338115459,1726283596100,-2000.0,0.0001313,2]
[338115460,1726283596123,-200.0,0.0001313,2]
[338115461,1726283596148,-151.0,0.000132,2]
[338115462,1726283596172,-151.0,0.000132,2]
[338115463,1726283596196,-151.0,0.000132,2]
[338115464,1726283596220,-151.0,0.000132,2]
[338115465,1726283596243,-151.0,0.000132,2]
[338115466,1726283596266,-151.0,0.000132,2]
[338115467,1726283596289,-151.0,0.000132,2]
[338115468,1726283596313,-151.0,0.000132,2]
[338115469,1726283596339,-151.0,0.000132,2]
[338115470,1726283596363,-303.375705,0.000132,2]
[338115471,1726283596387,-303.375705,0.000132,2]
[338115472,1726283596410,-151.0,0.000132,2]
[338115473,1726283596433,-453.187,0.000132,2]
[338115474,1726283596457,-1267.63,0.000132,2]
[338115475,1726283596480,-630.966,0.000132,2]
[338115476,1726283596503,-1558.416,0.000132,2]
[338115477,1726283596526,-1460.0,0.000132,2]
[338115478,1726283596550,-178.05465958,0.000132,2]
[338115479,1726283596574,-911.35,0.000132,2]
[338115480,1726283596598,-301.96,0.000132,2]
[338115481,1726283596621,-154.12,0.000132,2]
[338115482,1726283596645,-150.0,0.000132,2]
[338115483,1726283596669,-150.0,0.000132,2]
[338115484,1726283596693,-350.92,0.000132,2]
[338115485,1726283596717,-357.37,0.000132,2]
[338115486,1726283596741,-159.81981176,0.000132,2]
[338115487,1726283596766,-169.21674057,0.00013233,2]
[338115488,1726283596791,-200.0,0.00013261,2]
[338115489,1726283596815,-151.0,0.00013262,2]
[338115490,1726283596839,-151.0,0.00013262,2]
[338115491,1726283596863,-151.0,0.00013262,2]
[338115492,1726283596886,-500.0,0.00013273,2]
[338115493,1726283596909,-500.62954566,0.00013273,2]
[338115494,1726283596932,-500.0,0.00013273,2]
[338115495,1726283596955,-407.18779,0.00013273,2]
[338115496,1726283596978,-407.18779,0.00013273,2]
[338115497,1726283597002,-194.13589,0.00013273,2]
[338115498,1726283597025,-194.13589,0.00013273,2]
[338115499,1726283597048,-1263.005631,0.0001329,2]
[338115500,1726283597073,-1263.005631,0.0001329,2]
[338115501,1726283597097,-151.0,0.0001329,2]
[338115502,1726283597120,-158.002743,0.0001329,2]
[338115503,1726283597145,-151.0,0.00013291,2]
[338115504,1726283597169,-151.0,0.00013291,2]
[338115505,1726283597193,-151.0,0.00013291,2]
[338115506,1726283597216,-151.0,0.00013291,2]
[338115507,1726283597239,-151.0,0.00013291,2]
[338115508,1726283597263,-151.0,0.00013291,2]
[338115509,1726283597285,-151.0,0.00013291,2]
[338115510,1726283597309,-151.0,0.00013291,2]
[338115511,1726283597333,-151.0,0.00013291,2]
[338115512,1726283597357,-151.0,0.00013291,2]
[338115513,1726283597380,-265.199756,0.00013291,2]
[338115514,1726283597404,-265.199756,0.00013291,2]
[338115515,1726283597429,-151.0,0.00013291,2]
[338115516,1726283597452,-151.0,0.00013291,2]
[338115517,1726283597476,-171.215864,0.00013291,2]
[338115518,1726283597498,-171.215864,0.00013291,2]
[338115519,1726283597521,-151.0,0.00013291,2]
[338115520,1726283597545,-151.0,0.00013291,2]
[338115521,1726283597569,-331.662732,0.00013291,2]
[338115522,1726283597594,-331.662732,0.00013291,2]
[338115523,1726283597619,-1335.90652,0.00013291,2]
[338115524,1726283597643,-1335.90652,0.00013291,2]
[338115525,1726283597667,-533.530822,0.00013291,2]
[338115526,1726283597693,-533.530822,0.00013291,2]
[338115527,1726283597716,-151.0,0.00013291,2]
[338115528,1726283597740,-151.0,0.00013291,2]
[338115529,1726283597764,-151.0,0.00013291,2]
[338115530,1726283597791,-165.931918,0.00013291,2]
[338115531,1726283597815,-151.0,0.00013291,2]
[338115532,1726283597840,-295.986851,0.00013291,2]
[338115533,1726283597867,-282.251642,0.00013291,2]
[338115534,1726283597891,-295.986851,0.00013291,2]
[338115535,1726283597914,-282.251642,0.00013291,2]
[338115536,1726283597938,-156.58747,0.00013291,2]
[338115537,1726283597961,-156.58747,0.00013291,2]
[338115538,1726283597984,-151.0,0.00013291,2]
[338115539,1726283598007,-266.299655,0.00013291,2]
[338115540,1726283598030,-266.299655,0.00013291,2]
[338115541,1726283598054,-288.353686,0.00013291,2]
[338115542,1726283598078,-151.0,0.00013291,2]
[338115543,1726283598102,-288.353686,0.00013291,2]
[338115544,1726283598127,-173.354621,0.00013291,2]
[338115545,1726283598153,-173.354621,0.00013291,2]
[338115546,1726283598178,-151.0,0.00013291,2]
[338115547,1726283598202,-227.2651,0.00013291,2]
[338115548,1726283598226,-227.2651,0.00013291,2]
[338115549,1726283598251,-151.0,0.00013291,2]
[338115550,1726283598275,-151.0,0.00013291,2]
[338115551,1726283598298,-151.0,0.00013291,2]
[338115552,1726283598323,-164.804985,0.00013291,2]
[338115553,1726283598347,-164.804985,0.00013291,2]
[338115554,1726283598370,-151.0,0.00013291,2]
[338115555,1726283598394,-1279.446557,0.00013291,2]
[338115556,1726283598419,-1279.446557,0.00013291,2]
[338115557,1726283598442,-151.0,0.00013291,2]
[338115558,1726283598466,-155.539601,0.00013291,2]
[338115559,1726283598489,-151.0,0.00013291,2]
[338115560,1726283598512,-155.539601,0.00013291,2]
[338115561,1726283598536,-151.0,0.00013291,2]
[338115562,1726283598559,-203.562752,0.00013291,2]
[338115563,1726283598583,-203.562752,0.00013291,2]
[338115564,1726283598704,-151.0,0.00013291,2]
[338115565,1726283598736,-151.0,0.00013291,2]
[338115566,1726283598762,-197.200564,0.00013291,2]
[338115567,1726283598787,-197.200564,0.00013291,2]
[338115568,1726283598812,-2545.704095,0.00013291,2]
[338115569,1726283598836,-1293.928013,0.00013291,2]
[338115570,1726283598861,-2545.704095,0.00013291,2]
[338115571,1726283598885,-1293.928013,0.00013291,2]
[338115572,1726283598909,-151.0,0.00013291,2]
[338115573,1726283598932,-151.0,0.00013291,2]
[338115574,1726283598956,-263.59346,0.00013291,2]
[338115575,1726283598980,-263.59346,0.00013291,2]
[338115576,1726283599005,-1549.785968,0.00013291,2]
[338115577,1726283599029,-1549.785968,0.00013291,2]
[338115578,1726283599054,-668.70457,0.00013291,2]
[338115579,1726283599079,-668.70457,0.00013291,2]
[338115580,1726283599103,-1150.67116,0.00013291,2]
[338115581,1726283599127,-1150.67116,0.00013291,2]
[338115582,1726283599154,-268.540131,0.00013291,2]
[338115583,1726283599179,-268.540131,0.00013291,2]
[338115584,1726283599203,-2275.319601,0.00013291,2]
[338115585,1726283599228,-1228.725795,0.00013291,2]
[338115586,1726283599252,-2275.319601,0.00013291,2]
[338115587,1726283599277,-1228.725795,0.00013291,2]
[338115588,1726283599301,-456.550804,0.00013291,2]
[338115589,1726283599326,-456.550804,0.00013291,2]
[338115590,1726283599351,-151.0,0.00013291,2]
[338115591,1726283599376,-151.0,0.00013291,2]
[338115593,1726283599400,-685.028177,0.00013291,2]
[338115594,1726283599424,-685.028177,0.00013291,2]
[338115595,1726283599449,-517.0,0.000133,2]
[338115596,1726283599473,-250000.0,0.000133,2]
[338115597,1726283599501,-151.0,0.000133,2]
[338115598,1726283599525,-151.0,0.000133,2]
[338115599,1726283599549,-151.0,0.000133,2]
[338115600,1726283599575,-219.693559,0.000133,2]
[338115601,1726283599599,-151.0,0.000133,2]
[338115602,1726283599623,-151.0,0.000133,2]
[338115603,1726283599647,-151.0,0.000133,2]
[338115604,1726283599670,-205.516526,0.000133,2]
[338115605,1726283599695,-151.0,0.000133,2]
[338115606,1726283599719,-151.0,0.000133,2]
[338115607,1726283599745,-151.0,0.000133,2]
[338115608,1726283599771,-151.0,0.000133,2]
[338115609,1726283599796,-151.0,0.000133,2]
[338115610,1726283599820,-151.0,0.000133,2]
[338115611,1726283599844,-151.0,0.000133,2]
[338115612,1726283599869,-249.76752,0.000133,2]
[338115613,1726283599894,-151.0,0.000133,2]
[338115614,1726283599919,-151.354599,0.000133,2]
[338115615,1726283599944,-152.374272,0.000133,2]
[338115616,1726283599968,-151.0,0.000133,2]
[338115617,1726283599992,-151.0,0.000133,2]
[338115618,1726283600016,-153.171536,0.000133,2]
[338115619,1726283600039,-151.0,0.000133,2]
[338115620,1726283600063,-151.0,0.000133,2]
[338115621,1726283600086,-303.375705,0.000133,2]
[338115622,1726283600110,-303.375705,0.000133,2]
[338115623,1726283600134,-407.18779,0.000133,2]
[338115624,1726283600159,-407.18779,0.000133,2]
[338115625,1726283600183,-151.0,0.000133,2]
[338115626,1726283600206,-160.699051,0.000133,2]
[338115627,1726283600230,-194.13589,0.000133,2]
[338115628,1726283600253,-151.0,0.000133,2]
[338115629,1726283600276,-160.699051,0.000133,2]
[338115630,1726283600299,-151.0,0.000133,2]
[338115631,1726283600323,-194.13589,0.000133,2]
[338115632,1726283600349,-151.0,0.000133,2]
[338115633,1726283600376,-151.0,0.000133,2]
[338115634,1726283600399,-151.0,0.000133,2]
[338115635,1726283600422,-151.0,0.000133,2]
[338115636,1726283600445,-151.0,0.000133,2]
[338115637,1726283600469,-265.199756,0.000133,2]
[338115638,1726283600494,-265.199756,0.000133,2]
[338115639,1726283600518,-156.990454,0.000133,2]
[338115640,1726283600541,-151.0,0.000133,2]
[338115641,1726283600568,-171.215864,0.000133,2]
[338115642,1726283600592,-171.215864,0.000133,2]
[338115643,1726283600616,-151.0,0.000133,2]
[338115644,1726283600640,-151.0,0.000133,2]
[338115645,1726283600664,-331.662732,0.000133,2]
[338115646,1726283600690,-331.662732,0.000133,2]
[338115647,1726283600716,-1263.005631,0.000133,2]
[338115648,1726283600743,-1335.90652,0.000133,2]
[338115649,1726283600767,-1263.005631,0.000133,2]
[338115650,1726283600791,-1335.90652,0.000133,2]
[338115651,1726283600816,-533.530822,0.000133,2]
[338115652,1726283600840,-533.530822,0.000133,2]
[338115653,1726283600863,-151.0,0.000133,2]
[338115654,1726283600886,-151.0,0.000133,2]
[338115655,1726283601101,-151.0,0.000133,2]
[338115656,1726283601125,-151.0,0.000133,2]
[338115657,1726283601150,-151.383031,0.000133,2]
[338115658,1726283601174,-154.466607,0.000133,2]
[338115659,1726283601198,-154.466607,0.000133,2]
[338115660,1726283601221,-151.0,0.000133,2]
[338115661,1726283601245,-295.986851,0.000133,2]
[338115662,1726283601267,-282.251642,0.000133,2]
[338115663,1726283601291,-295.986851,0.000133,2]
[338115664,1726283601314,-282.251642,0.000133,2]
[338115665,1726283601337,-156.58747,0.000133,2]
[338115666,1726283601360,-156.58747,0.000133,2]
[338115667,1726283601383,-151.893596,0.000133,2]
[338115668,1726283601406,-266.299655,0.000133,2]
[338115669,1726283601428,-266.299655,0.000133,2]
[338115670,1726283601451,-288.353686,0.000133,2]
[338115671,1726283601474,-151.0,0.000133,2]
[338115672,1726283601497,-288.353686,0.000133,2]
[338115673,1726283601519,-173.354621,0.000133,2]
[338115674,1726283601541,-173.354621,0.000133,2]
[338115675,1726283601566,-151.0,0.000133,2]
[338115676,1726283601589,-227.2651,0.000133,2]
[338115677,1726283601614,-227.2651,0.000133,2]
[338115678,1726283601636,-286.829367,0.000133,2]
[338115679,1726283601659,-151.0,0.000133,2]
[338115680,1726283601682,-151.633332,0.000133,2]
[338115681,1726283601709,-164.804985,0.000133,2]
[338115682,1726283601734,-164.804985,0.000133,2]
[338115683,1726283601760,-151.0,0.000133,2]
[338115684,1726283601787,-1279.446557,0.000133,2]
[338115685,1726283601811,-1279.446557,0.000133,2]
[338115686,1726283601836,-151.0,0.000133,2]
[338115687,1726283601860,-155.539601,0.000133,2]
[338115688,1726283601884,-151.0,0.000133,2]
[338115689,1726283601907,-155.539601,0.000133,2]
[338115690,1726283601930,-298.767801,0.000133,2]
[338115691,1726283601953,-203.562752,0.000133,2]
[338115692,1726283601976,-203.562752,0.000133,2]
[338115693,1726283602000,-151.0,0.000133,2]
[338115694,1726283602023,-151.0,0.000133,2]
[338115695,1726283602051,-197.200564,0.000133,2]
[338115696,1726283602076,-197.200564,0.000133,2]
[338115697,1726283602099,-2545.704095,0.000133,2]
[338115698,1726283602122,-1293.928013,0.000133,2]
[338115699,1726283602146,-1293.928013,0.000133,2]
[338115700,1726283602171,-2545.704095,0.000133,2]
[338115701,1726283602195,-151.0,0.000133,2]
[338115702,1726283602220,-151.0,0.000133,2]
[338115703,1726283602247,-263.59346,0.000133,2]
[338115704,1726283602273,-263.59346,0.000133,2]
[338115705,1726283602298,-1549.785968,0.000133,2]
[338115706,1726283602324,-1549.785968,0.000133,2]
[338115707,1726283602351,-668.70457,0.000133,2]
[338115708,1726283602378,-668.70457,0.000133,2]
[338115709,1726283602402,-151.0,0.000133,2]
[338115710,1726283602428,-349.55647,0.000133,2]
[338115711,1726283602455,-349.55647,0.000133,2]
[338115712,1726283602481,-1150.67116,0.000133,2]
[338115713,1726283602509,-1150.67116,0.000133,2]
[338115714,1726283602533,-758.0,0.000133,2]
[338115715,1726283602558,-268.540131,0.000133,2]
[338115716,1726283602582,-268.540131,0.000133,2]
[338115717,1726283602606,-544.770083,0.000133,2]
[338115718,1726283602632,-2275.319601,0.000133,2]
[338115719,1726283602655,-544.770083,0.000133,2]
[338115720,1726283602679,-1228.725795,0.000133,2]
[338115721,1726283602706,-2275.319601,0.000133,2]
[338115722,1726283602730,-1228.725795,0.000133,2]
[338115723,1726283602755,-456.550804,0.000133,2]
[338115724,1726283602783,-9881.541612,0.000133,2]
[338115725,1726283602806,-456.550804,0.000133,2]
[338115726,1726283602835,-9881.541612,0.000133,2]
[338115727,1726283602860,-151.0,0.000133,2]
[338115728,1726283602884,-151.0,0.000133,2]
[338115729,1726283602908,-179.588995,0.000133,2]
[338115730,1726283602932,-179.588995,0.000133,2]
[338115731,1726283602956,-237.2878,0.000133,2]
[338115732,1726283602980,-237.2878,0.000133,2]
[338115733,1726283603003,-151.0,0.000133,2]
[338115734,1726283603026,-151.0,0.000133,2]
[338115735,1726283603049,-151.0,0.000133,2]
[338115736,1726283603074,-246.93259975,0.000133,2]
[338115737,1726283603097,-151.0,0.000133,2]
[338115738,1726283603121,-618.55899626,0.000133,2]
[338115739,1726283603145,-1180.061605,0.000133,2]
[338115740,1726283603168,-151.0,0.000133,2]
[338115741,1726283603191,-1180.061605,0.000133,2]
[338115742,1726283603215,-685.028177,0.000133,2]
[338115743,1726283603237,-685.028177,0.000133,2]
[338115744,1726283603261,-151.0,0.000133,2]
[338115745,1726283603285,-308.40612,0.000133,2]
[338115746,1726283603308,-308.40612,0.000133,2]
[338115747,1726283603334,-925.496886,0.000133,2]
[338115748,1726283603360,-247.44,0.000133,2]
[338115749,1726283603389,-925.496886,0.000133,2]
[338115750,1726283603415,-151.0,0.000133,2]
[338115751,1726283603442,-151.0,0.000133,2]
[338115752,1726283603469,-200.0,0.00013334,2]
[338115753,1726283603495,-1787.50034615,0.00013344,2]
[338115754,1726283603519,-156.459,0.00013344,2]
[338115755,1726283603544,-151.17,0.0001337,2]
[338115756,1726283603571,-150.0,0.0001337,2]
[338115757,1726283603594,-150.0,0.0001337,2]
[338115758,1726283603617,-150.0,0.0001337,2]
[338115759,1726283603641,-150.0,0.0001337,2]
[338115760,1726283603666,-150.0,0.0001337,2]
[338115761,1726283603690,-150.0,0.0001337,2]
[338115762,1726283603715,-150.0,0.0001337,2]
[338115763,1726283603740,-150.0,0.0001337,2]
[338115764,1726283603767,-200.0,0.00013394,2]
[338115765,1726283603790,-162.13,0.00013455,2]
[338115766,1726283603814,-178.05465952,0.00013483,2]
[338115767,1726283603838,-200.0,0.00013528,2]
[338115768,1726283603864,-1787.50034615,0.00013567,2]
[338115769,1726283603887,-169.21674057,0.00013567,2]
[338115770,1726283603911,-796.0,0.0001359,2]
[338115771,1726283603933,-173.86425627,0.0001359,2]
[338115772,1726283603956,-796.0,0.0001359,2]
[338115773,1726283603979,-152.0,0.00013634,3]
[338115774,1726283604002,-1000.0,0.0001367,2]
[338115775,1726283604025,-151.0,0.00013699,2]
[338115776,1726283604048,-151.0,0.00013699,2]
[338115777,1726283604073,-151.0,0.00013699,2]
[338115778,1726283604097,-2911.738363,0.00013699,2]
[338115779,1726283604123,-2911.738363,0.00013699,2]
[338115780,1726283604152,-2911.738363,0.00013699,2]
[338115781,1726283604179,-2911.738363,0.00013699,2]
[338115782,1726283604207,-2911.738363,0.00013699,2]
[338115783,1726283604234,-2911.738363,0.00013699,2]
[338115784,1726283604258,-187.544749,0.00013699,2]
[338115785,1726283604281,-187.544749,0.00013699,2]
[338115786,1726283604307,-187.544749,0.00013699,2]
[338115787,1726283604333,-187.544749,0.00013699,2]
[338115788,1726283604359,-187.544749,0.00013699,2]
[338115789,1726283604384,-187.544749,0.00013699,2]
[338115790,1726283604411,-162.31,0.00013699,2]
[338115791,1726283604437,-150.0,0.00013699,2]
[338115792,1726283604464,-3314.75,0.00013699,2]
[338115793,1726283604490,-200.0,0.00013699,2]
[338115794,1726283604841,29449.12015438,0.000133,2]
[338115795,1726283604912,427.41,0.000132,2]
[338115796,1726283604977,564.9,0.000132,2]
[338115797,1726283605176,482.424933,0.00013,2]
[338115798,1726283605216,482.424933,0.000133,2]
[338115799,1726283605387,482.424933,0.00013,2]
[338115800,1726283605431,482.424933,0.000133,2]
[338115801,1726283607775,1000.0,0.00031375,60]
[338115802,1726283612713,1000.0,0.00031376,30]
[338115804,1726283631295,1000.0,0.00031376,30]
[338115805,1726283649905,1000.0,0.00031376,30]
[338115806,1726283652529,722.0,0.00031376,120]
[338115807,1726283656214,3131.2546,0.00031376,30]
[338115808,1726283662730,1000.0,0.00031376,60]
[338115810,1726283675540,1000.0,0.00031376,60]
[338115811,1726283675691,994.04059751,0.00031376,60]
[338115812,1726283688619,1000.0,0.00031376,30]
[338115813,1726283690427,295.01660741,0.00031376,120]
[338115814,1726283690711,1178.08,0.00031376,30]
[338115815,1726283690984,1178.08,0.00031376,32]
[338115816,1726283691257,1178.08,0.00031376,34]